bitfinex/quotes_BTCUSD_20240718
["timestamp","ask_amount","ask_price","bid_price","bid_amount"]
[1721282435387,1.36559547,64844.0,64843.0,0.000913]
[1721282435614,1.45694504,64844.0,64843.0,0.000913]
[1721282435842,1.50694504,64844.0,64843.0,0.000913]
[1721282436075,1.47094504,64844.0,64843.0,0.000913]
[1721282436335,1.30554863,64844.0,64843.0,0.000913]
[1721282436571,1.31854863,64844.0,64843.0,0.001913]
[1721282436782,1.33254863,64844.0,64843.0,0.001913]
[1721282437228,1.28972725,64844.0,64843.0,0.000913]
[1721282437448,1.44407682,64844.0,64843.0,0.000913]
[1721282437716,1.58487682,64844.0,64843.0,0.001913]
[1721282437956,1.63194413,64844.0,64843.0,0.001913]
[1721282438181,1.51674676,64844.0,64843.0,0.001913]
[1721282439094,1.63194036,64844.0,64843.0,0.001913]
[1721282439317,1.43771892,64844.0,64843.0,0.001913]
[1721282439552,1.58210722,64844.0,64843.0,0.001913]
[1721282439998,1.42775765,64844.0,64843.0,0.001913]
[1721282440237,0.59251484,64844.0,64843.0,0.001913]
[1721282440484,0.83183735,64844.0,64843.0,0.001913]
[1721282441362,0.87791069,64844.0,64843.0,0.001913]
[1721282442425,0.83183735,64844.0,64843.0,0.001913]
[1721282442686,0.87791216,64844.0,64843.0,0.001913]
[1721282443337,0.83183735,64844.0,64843.0,0.001913]
[1721282443744,0.98618692,64844.0,64843.0,0.001913]
[1721282444279,0.83183735,64844.0,64843.0,0.001913]
[1721282444505,0.90094957,64844.0,64843.0,0.001913]
[1721282444719,0.83183735,64844.0,64843.0,0.001913]
[1721282445184,0.90094957,64844.0,64843.0,0.001913]
[1721282445399,1.14026935,64844.0,64843.0,0.001913]
[1721282446072,1.23241981,64844.0,64843.0,0.001913]
[1721282446296,1.14026935,64844.0,64843.0,0.001913]
[1721282446521,1.23241981,64844.0,64843.0,0.001913]
[1721282447183,1.31478572,64844.0,64843.0,0.001913]
[1721282447393,1.32673404,64844.0,64843.0,0.001913]
[1721282447623,1.29791767,64844.0,64843.0,0.001913]
[1721282448109,1.32693602,64844.0,64843.0,0.001913]
[1721282448327,1.20576935,64844.0,64843.0,0.001913]
[1721282449015,1.176912,64844.0,64843.0,0.001913]
[1721282449277,1.40749515,64844.0,64843.0,0.001913]
[1721282449484,1.48899515,64844.0,64843.0,0.001913]
[1721282449914,1.6041733,64844.0,64843.0,0.001913]
[1721282450145,1.60417435,64844.0,64843.0,0.001913]
[1721282450357,1.60417435,64844.0,64843.0,0.000913]
[1721282450358,1.56517435,64844.0,64843.0,0.000913]
[1721282450809,1.57917435,64844.0,64843.0,0.001913]
[1721282451930,1.57879388,64844.0,64843.0,0.001913]
[1721282452364,1.64909388,64844.0,64843.0,0.001913]
[1721282452604,1.66309388,64844.0,64843.0,0.001913]
[1721282453249,1.61309388,64844.0,64843.0,0.001913]
[1721282453465,1.34648731,64844.0,64843.0,0.001913]
[1721282454326,1.43859593,64844.0,64843.0,0.001913]
[1721282454719,1.35709593,64844.0,64843.0,0.001913]
[1721282454958,0.88408862,64844.0,64843.0,0.084713]
[1721282455171,0.96051252,64844.0,64843.0,0.084713]
[1721282455387,0.89143106,64844.0,64843.0,0.084713]
[1721282455610,0.89192684,64844.0,64843.0,0.084713]
[1721282456707,0.05764684,64844.0,64843.0,0.238931]
[1721282456955,0.05764684,64844.0,64843.0,0.301131]
[1721282457164,0.05764684,64844.0,64843.0,0.30771459]
[1721282457376,0.05764684,64844.0,64843.0,0.77053333]
[1721282457617,0.05847684,64844.0,64843.0,0.77053333]
[1721282457828,0.02883,64844.0,64843.0,0.77053333]
[1721282458699,0.01483,64844.0,64843.0,0.77053333]
[1721282459110,0.00683,64844.0,64843.0,0.76953333]
[1721282459546,0.01183,64844.0,64843.0,0.76953333]
[1721282459755,0.01783,64844.0,64843.0,0.76953333]
[1721282459990,0.01283,64844.0,64843.0,0.76953333]
[1721282460227,0.01683,64844.0,64843.0,0.76953333]
[1721282460469,0.00483,64844.0,64843.0,0.76953333]
[1721282460907,0.01083,64844.0,64843.0,0.46109633]
[1721282461127,0.01083,64844.0,64843.0,0.76953333]
[1721282462048,0.00483,64844.0,64843.0,0.76953333]
[1721282462268,0.00083,64844.0,64843.0,1.07797033]
[1721282462497,0.00683,64844.0,64843.0,1.38640733]
[1721282462715,0.01083,64844.0,64843.0,1.38640733]
[1721282463207,0.01683,64844.0,64843.0,1.38640733]
[1721282463412,0.00683,64844.0,64843.0,1.38640733]
[1721282463623,0.01083,64844.0,64843.0,1.38640733]
[1721282464286,0.00683,64844.0,64843.0,1.38640733]
[1721282465665,0.00683,64844.0,64843.0,1.38940733]
[1721282465666,0.00783,64844.0,64843.0,1.38940733]
[1721282468973,0.00783,64844.0,64843.0,1.08097033]
[1721282469839,0.00083,64844.0,64843.0,1.07797033]
[1721282470283,0.00083,64844.0,64843.0,1.07897033]
[1721282473249,0.00083,64844.0,64843.0,1.38740733]
[1721282473905,0.00083,64844.0,64843.0,1.81884433]
[1721282474806,0.00083,64844.0,64843.0,2.48091269]
[1721282475012,0.53225888,64866.0,64865.0,0.91953]
[1721282475013,0.46304871,64866.0,64865.0,0.91953]
[1721282475236,0.46304871,64866.0,64865.0,1.07391174]
[1721282475466,0.00083,64867.0,64866.0,0.770817]
[1721282475710,0.00083,64867.0,64866.0,0.92519874]
[1721282476373,0.00083,64867.0,64866.0,0.93171072]
[1721282476712,0.00183,64867.0,64866.0,0.93171072]
[1721282476936,0.00383,64867.0,64866.0,1.24003772]
[1721282478492,0.00183,64867.0,64866.0,1.24003772]
[1721282478720,0.00083,64867.0,64866.0,1.24203772]
[1721282478943,0.00083,64867.0,64866.0,1.24403772]
[1721282479371,0.00083,64867.0,64866.0,1.24603772]
[1721282479592,0.00083,64867.0,64866.0,1.32603772]
[1721282480035,0.00083,64867.0,64866.0,1.32803772]
[1721282480265,0.00083,64867.0,64866.0,1.32403772]
[1721282480702,0.00083,64867.0,64866.0,1.39033772]
[1721282481784,0.00083,64867.0,64866.0,1.38833772]
[1721282482209,0.00183,64867.0,64866.0,1.39033772]
[1721282482678,0.00183,64867.0,64866.0,1.38733772]
[1721282482919,0.00283,64867.0,64866.0,1.39033772]
[1721282488323,0.00283,64867.0,64866.0,1.82166472]
[1721282489207,0.00083,64867.0,64866.0,1.81666472]
[1721282489433,0.00183,64867.0,64866.0,1.81866472]
[1721282489655,0.00283,64867.0,64866.0,1.82166472]
[1721282490130,0.00283,64867.0,64866.0,1.49033772]
[1721282492123,0.00283,64867.0,64866.0,1.11871072]
[1721282493033,0.00183,64867.0,64866.0,1.11571072]
[1721282493249,0.00083,64867.0,64866.0,1.11671072]
[1721282493681,0.00083,64867.0,64866.0,1.11871072]
[1721282493974,0.00083,64867.0,64866.0,1.11571072]
[1721282495290,0.00183,64867.0,64866.0,1.11871072]
[1721282501910,0.00183,64867.0,64866.0,1.01871072]
[1721282502366,0.00183,64867.0,64866.0,0.39025672]
[1721282502367,0.06203,64867.0,64866.0,0.39025672]
[1721282502578,0.295091,64867.0,64866.0,0.01151198]
[1721282502790,0.911737,64867.0,64866.0,0.01151198]
[1721282503005,1.3182537,64867.0,64866.0,0.005]
[1721282503242,1.39706287,64867.0,64866.0,0.002]
[1721282503673,1.39706287,64867.0,64866.0,0.005]
[1721282503674,1.44306555,64867.0,64866.0,0.005]
[1721282503927,1.39706287,64867.0,64866.0,0.005]
[1721282504135,1.39706287,64867.0,64843.0,0.367826]
[1721282504136,0.293316,64844.0,64843.0,0.367826]
[1721282504381,0.91018,64844.0,64843.0,0.000913]
[1721282504610,0.91018,64844.0,64843.0,0.00738069]
[1721282504611,1.218612,64844.0,64843.0,0.00738069]
[1721282504828,1.218612,64844.0,64843.0,0.000913]
[1721282505489,1.198612,64844.0,64843.0,0.000913]
[1721282505724,0.89018,64844.0,64843.0,0.000913]
[1721282505949,0.581748,64844.0,64843.0,0.000913]
[1721282506192,0.0641,64844.0,64843.0,0.000913]
[1721282506409,0.014,64844.0,64843.0,0.15513]
[1721282506669,0.014,64844.0,64843.0,0.30951174]
[1721282506899,0.0616,64853.0,64848.0,0.154205]
[1721282507137,0.0649,64859.0,64849.0,0.15438174]
[1721282507615,0.0649,64859.0,64855.0,0.154188]
[1721282508064,0.0649,64859.0,64856.0,0.00646769]
[1721282508505,0.0649,64859.0,64851.0,0.308398]
[1721282508738,0.0649,64859.0,64857.0,0.00646769]
[1721282508955,0.0649,64859.0,64852.0,0.30857674]
[1721282509220,0.154208,64848.0,64843.0,0.000913]
[1721282509431,0.154205,64849.0,64843.0,0.15513]
[1721282510520,0.154209,64847.0,64843.0,0.000913]
[1721282510973,0.0616,64846.0,64843.0,0.000913]
[1721282511190,0.154215,64845.0,64843.0,0.000913]
[1721282511694,0.462648,64844.0,64843.0,0.000913]
[1721282511948,0.85348,64844.0,64843.0,0.000913]
[1721282512423,1.30842,64844.0,64843.0,0.000913]
[1721282512856,1.211912,64844.0,64843.0,0.000913]
[1721282513328,1.216912,64844.0,64843.0,0.000913]
[1721282513539,1.214912,64844.0,64843.0,0.000913]
[1721282513759,1.164912,64844.0,64843.0,0.000913]
[1721282513989,1.228912,64844.0,64843.0,0.000913]
[1721282514422,1.37028443,64844.0,64843.0,0.000913]
[1721282515605,1.228912,64844.0,64843.0,0.000913]
[1721282515810,1.189912,64844.0,64843.0,0.000913]
[1721282516233,1.203912,64844.0,64843.0,0.000913]
[1721282518039,1.253912,64844.0,64843.0,0.000913]
[1721282520276,1.203912,64844.0,64843.0,0.000913]
[1721282520511,0.89548,64844.0,64843.0,0.000913]
[1721282521019,1.35462,64844.0,64843.0,0.000913]
[1721282521522,1.88003374,64844.0,64843.0,0.000913]
[1721282522197,1.98003374,64844.0,64843.0,0.000913]
[1721282522416,2.03040286,64844.0,64843.0,0.000913]
[1721282522665,1.93803374,64844.0,64843.0,0.000913]
[1721282522889,1.96603374,64844.0,64843.0,0.000913]
[1721282523410,1.95203374,64844.0,64843.0,0.000913]
[1721282523641,1.96686374,64844.0,64843.0,0.000913]
[1721282523857,2.04552374,64844.0,64843.0,0.000913]
[1721282524096,2.07817983,64844.0,64843.0,0.000913]
[1721282524306,2.40961183,64844.0,64843.0,0.000913]
[1721282524570,2.40961342,64844.0,64843.0,0.000913]
[1721282525243,2.4228042,64844.0,64843.0,0.000913]
[1721282525472,2.4088042,64844.0,64843.0,0.000913]
[1721282525681,2.3948042,64844.0,64843.0,0.000913]
[1721282525891,2.39095574,64844.0,64843.0,0.000913]
[1721282526146,2.42280495,64844.0,64843.0,0.000913]
[1721282526364,2.43680495,64844.0,64843.0,0.000913]
[1721282526580,2.42280495,64844.0,64843.0,0.000913]
[1721282526800,2.43680495,64844.0,64843.0,0.000913]
[1721282527238,2.4826876,64844.0,64843.0,0.000913]
[1721282527452,2.43680495,64844.0,64843.0,0.000913]
[1721282527893,2.48216925,64844.0,64843.0,0.000913]
[1721282528363,2.40830701,64844.0,64843.0,0.000913]
[1721282528596,2.42230701,64844.0,64843.0,0.000913]
[1721282528846,2.40830701,64844.0,64843.0,0.000913]
[1721282529303,2.42230701,64844.0,64843.0,0.000913]
[1721282529518,2.40830701,64844.0,64843.0,0.000913]
[1721282529974,2.42230701,64844.0,64843.0,0.000913]
[1721282530183,2.40830701,64844.0,64843.0,0.000913]
[1721282530399,2.40830701,64844.0,64842.0,0.000913]
[1721282530400,1.980491,64842.0,64841.0,0.00667375]
[1721282530614,2.44357358,64842.0,64841.0,0.00667375]
[1721282530839,2.44353448,64842.0,64841.0,0.00667375]
[1721282533820,2.45753448,64842.0,64841.0,0.00667375]
[1721282534049,2.45785583,64842.0,64841.0,0.00667375]
[1721282534305,2.14941383,64842.0,64841.0,0.00667375]
[1721282535181,2.16341383,64842.0,64841.0,0.00667375]
[1721282535850,2.14041383,64842.0,64841.0,0.00667375]
[1721282536969,2.10878031,64842.0,64841.0,0.00667375]
[1721282537181,2.12587321,64842.0,64841.0,0.00667375]
[1721282537619,2.13987347,64842.0,64841.0,0.00667375]
[1721282538048,2.12587347,64842.0,64841.0,0.00667375]
[1721282538493,2.13987347,64842.0,64841.0,0.00667375]
[1721282540107,2.13178031,64842.0,64841.0,0.00667375]
[1721282540321,2.16292792,64842.0,64841.0,0.00667375]
[1721282543229,2.13178031,64842.0,64841.0,0.00667375]
[1721282543450,2.16342059,64842.0,64841.0,0.00667375]
[1721282545232,2.20934358,64842.0,64841.0,0.00667375]
[1721282545449,2.27648035,64842.0,64841.0,0.00667375]
[1721282545665,2.20934358,64842.0,64841.0,0.00667375]
[1721282546366,2.2006648,64842.0,64841.0,0.00657375]
[1721282546602,2.05334315,64842.0,64841.0,0.00657375]
[1721282546820,1.95443074,64842.0,64841.0,0.00657375]
[1721282547032,2.12233721,64842.0,64841.0,0.00657375]
[1721282547245,2.21928546,64842.0,64841.0,0.00657375]
[1721282548194,2.12729077,64842.0,64841.0,0.00657375]
[1721282549791,2.12915165,64842.0,64841.0,0.00657375]
[1721282552723,2.13128751,64842.0,64841.0,0.00657375]
[1721282553388,2.26959051,64842.0,64841.0,0.00657375]
[1721282553813,2.02838031,64842.0,64841.0,0.00657375]
[1721282554025,2.26982929,64842.0,64841.0,0.00657375]
[1721282554208,2.13147792,64842.0,64841.0,0.00657375]
[1721282554902,1.61937592,64842.0,64841.0,0.00657375]
[1721282555090,1.66937592,64842.0,64841.0,0.00657375]
[1721282555379,1.80778929,64842.0,64841.0,0.00657375]
[1721282555847,1.69157979,64842.0,64841.0,0.00657375]
[1721282556080,1.80879637,64842.0,64841.0,0.00657375]
[1721282556293,1.55310831,64842.0,64841.0,0.00657375]
[1721282556508,1.67032532,64842.0,64841.0,0.00657375]
[1721282557157,1.62032532,64842.0,64841.0,0.00657375]
[1721282557381,1.62032532,64842.0,64841.0,0.08357375]
[1721282557851,1.68942466,64842.0,64841.0,0.08357375]
[1721282558045,1.55084252,64842.0,64841.0,0.08357375]
[1721282558266,1.62052017,64842.0,64841.0,0.08357375]
[1721282558476,1.55084252,64842.0,64841.0,0.08357375]
[1721282558710,1.62028476,64842.0,64841.0,0.08357375]
[1721282559178,1.62024361,64842.0,64841.0,0.08357375]
[1721282560263,1.77620398,64842.0,64841.0,0.08357375]
[1721282560484,1.62024361,64842.0,64841.0,0.08357375]
[1721282560708,1.67024361,64842.0,64841.0,0.00657375]
[1721282561597,1.75274361,64842.0,64841.0,0.00657375]
[1721282561862,1.81624361,64842.0,64841.0,0.00657375]
[1721282562301,1.81567841,64842.0,64841.0,0.00657375]
[1721282562964,2.12412041,64842.0,64841.0,0.00657375]
[1721282563430,2.23978041,64842.0,64841.0,0.00657375]
[1721282563654,2.27392624,64842.0,64841.0,0.00657375]
[1721282565477,2.27379996,64842.0,64841.0,0.00657375]
[1721282565904,2.17135614,64842.0,64841.0,0.00657375]
[1721282566060,2.27398351,64842.0,64841.0,0.00657375]
[1721282568029,2.58242551,64842.0,64841.0,0.00657375]
[1721282568696,1.746585,64836.0,64835.0,0.009174]
[1721282568925,2.57721983,64836.0,64835.0,0.009174]
[1721282569161,2.61046103,64836.0,64835.0,0.009174]
[1721282569420,2.68237006,64836.0,64835.0,0.009174]
[1721282569607,2.68175496,64836.0,64835.0,0.009174]
[1721282569821,2.83610453,64836.0,64835.0,0.009174]
[1721282570487,2.85010453,64836.0,64835.0,0.009174]
[1721282571195,2.86410453,64836.0,64835.0,0.009174]
[1721282571406,3.22409461,64836.0,64835.0,1e-06]
[1721282571619,3.21009461,64836.0,64835.0,1e-06]
[1721282571847,3.19825745,64836.0,64835.0,1e-06]
[1721282572113,3.21225745,64836.0,64835.0,1e-06]
[1721282572350,3.22625745,64836.0,64835.0,1e-06]
[1721282572571,3.21225745,64836.0,64835.0,1e-06]
[1721282573002,3.22625745,64836.0,64835.0,1e-06]
[1721282573154,3.21225745,64836.0,64835.0,1e-06]
[1721282573572,3.22625745,64836.0,64835.0,1e-06]
[1721282573774,3.16073737,64836.0,64835.0,1e-06]
[1721282574166,2.82661266,64836.0,64835.0,1e-06]
[1721282574373,2.81261266,64836.0,64835.0,1e-06]
[1721282574813,2.77565397,64836.0,64835.0,1e-06]
[1721282575228,2.67067024,64836.0,64835.0,1e-06]
[1721282575437,2.78585042,64836.0,64835.0,1e-06]
[1721282575647,2.79985042,64836.0,64835.0,1e-06]
[1721282575850,2.81385069,64836.0,64835.0,1e-06]
[1721282577974,2.81376703,64836.0,64835.0,1e-06]
[1721282578445,2.86528711,64836.0,64835.0,1e-06]
[1721282578642,2.55681711,64836.0,64835.0,1e-06]
[1721282579306,2.86528711,64836.0,64835.0,1e-06]
[1721282580251,2.68869318,64836.0,64835.0,1e-06]
[1721282580904,2.68999954,64836.0,64835.0,1e-06]
[1721282581545,2.66580837,64836.0,64835.0,1e-06]
[1721282583515,2.66421142,64836.0,64835.0,1e-06]
[1721282584143,2.66495003,64836.0,64835.0,1e-06]
[1721282586145,2.54257188,64836.0,64835.0,1e-06]
[1721282586356,2.61279153,64836.0,64835.0,1e-06]
[1721282589919,2.5425491,64836.0,64835.0,1e-06]
[1721282590136,2.61274702,64836.0,64835.0,1e-06]
[1721282590566,2.76966129,64836.0,64835.0,1e-06]
[1721282590772,2.84079129,64836.0,64835.0,1e-06]
[1721282591209,1.99600702,64836.0,64835.0,1e-06]
[1721282591441,1.88895745,64836.0,64835.0,1e-06]
[1721282591884,2.04473208,64836.0,64835.0,1e-06]
[1721282592303,1.81865745,64836.0,64835.0,1e-06]
[1721282592559,1.80465745,64836.0,64835.0,1e-06]
[1721282592996,1.94165745,64836.0,64835.0,1e-06]
[1721282593221,2.08200702,64836.0,64835.0,1e-06]
[1721282593685,2.09646259,64836.0,64835.0,0.080301]
[1721282595489,0.90513128,64836.0,64835.0,0.080301]
[1721282595727,0.90513128,64836.0,64835.0,0.141901]
[1721282595728,0.21777469,64836.0,64835.0,0.141901]
[1721282595960,0.06353969,64836.0,64835.0,0.141901]
[1721282596182,0.06316009,64836.0,64835.0,0.30278544]
[1721282596425,0.15545444,64836.0,64835.0,0.30278544]
[1721282596642,0.12745444,64836.0,64835.0,0.30278544]
[1721282596868,0.12745444,64836.0,64835.0,0.14854844]
[1721282596869,0.03516009,64836.0,64835.0,0.14854844]
[1721282597084,0.04916009,64836.0,64835.0,0.14854844]
[1721282597542,0.00083,64836.0,64835.0,0.14854844]
[1721282597830,0.09802956,64836.0,64835.0,0.14854844]
[1721282598058,0.07496126,64836.0,64835.0,0.14854844]
[1721282598295,0.02883,64836.0,64835.0,0.14854844]
[1721282598746,0.09802956,64836.0,64835.0,0.14854844]
[1721282598955,0.08402956,64836.0,64835.0,0.14854844]
[1721282599176,0.08401746,64836.0,64835.0,0.14854844]
[1721282599398,0.09801746,64836.0,64835.0,0.14854844]
[1721282599833,0.07494636,64836.0,64835.0,0.14854844]
[1721282600310,0.09801746,64836.0,64835.0,0.14854844]
[1721282600520,0.02883,64836.0,64835.0,0.14854844]
[1721282600731,0.09801746,64836.0,64835.0,0.14854844]
[1721282601158,0.02883,64836.0,64835.0,0.61126044]
[1721282601633,0.02883,64836.0,64835.0,0.30278544]
[1721282602077,0.01483,64836.0,64835.0,0.30278544]
[1721282602521,0.02583,64836.0,64835.0,0.30278544]
[1721282602753,0.01183,64836.0,64835.0,0.14854844]
[1721282602964,0.166065,64836.0,64835.0,0.14854844]
[1721282603189,0.176065,64836.0,64835.0,0.14854844]
[1721282603403,0.22215853,64836.0,64835.0,0.14854844]
[1721282603624,0.22215853,64836.0,64835.0,0.141901]
[1721282603625,0.176065,64836.0,64835.0,0.141901]
[1721282604068,0.21215853,64836.0,64835.0,0.141901]
[1721282604270,0.166065,64836.0,64835.0,0.141901]
[1721282604487,0.27510569,64836.0,64835.0,0.141901]
[1721282607082,2.10280055,64836.0,64835.0,1e-06]
[1721282607515,2.09280055,64836.0,64835.0,1e-06]
[1721282607720,2.10680055,64836.0,64835.0,1e-06]
[1721282608236,2.41527055,64836.0,64835.0,1e-06]
[1721282608473,2.47426788,64836.0,64835.0,1e-06]
[1721282608690,2.47467034,64836.0,64835.0,1e-06]
[1721282609595,2.15220034,64836.0,64835.0,1e-06]
[1721282609805,2.18020034,64836.0,64835.0,1e-06]
[1721282610018,2.11510034,64836.0,64835.0,1e-06]
[1721282610233,2.27121543,64836.0,64835.0,1e-06]
[1721282610442,2.22921543,64836.0,64835.0,1e-06]
[1721282610884,2.08760424,64836.0,64835.0,1e-06]
[1721282611330,2.07360424,64836.0,64835.0,1e-06]
[1721282611554,1.96882743,64836.0,64835.0,1e-06]
[1721282611761,2.10178345,64836.0,64835.0,1e-06]
[1721282611975,2.24338998,64836.0,64835.0,1e-06]
[1721282612195,1.95690239,64836.0,64835.0,1e-06]
[1721282612403,2.04147291,64836.0,64835.0,1e-06]
[1721282612609,1.7562017,64836.0,64835.0,1e-06]
[1721282612817,1.8488617,64836.0,64835.0,1e-06]
[1721282614178,1.98717412,64836.0,64835.0,1e-06]
[1721282614848,1.98754513,64836.0,64835.0,1e-06]
[1721282615083,1.84923843,64836.0,64835.0,1e-06]
[1721282615574,1.88589554,64836.0,64835.0,1e-06]
[1721282615745,2.02420301,64836.0,64835.0,1e-06]
[1721282616859,1.97420301,64836.0,64835.0,1e-06]
[1721282617504,1.97420301,64836.0,64835.0,0.078401]
[1721282617505,1.43203416,64836.0,64835.0,0.078401]
[1721282617874,1.258475,64836.0,64835.0,0.078401]
[1721282618120,1.43148376,64836.0,64835.0,0.078401]
[1721282618734,1.38148376,64836.0,64835.0,0.078401]
[1721282618949,1.2431718,64836.0,64835.0,0.078401]
[1721282619284,1.37368063,64836.0,64835.0,0.078401]
[1721282619970,0.9347018,64836.0,64835.0,0.078401]
[1721282620626,0.9347018,64836.0,64835.0,0.142301]
[1721282620803,0.9067018,64836.0,64835.0,0.142301]
[1721282621047,0.872005,64836.0,64835.0,0.142301]
[1721282621230,0.92061388,64836.0,64835.0,0.142301]
[1721282621476,1.06235162,64836.0,64835.0,0.142301]
[1721282622110,1.19161479,64836.0,64835.0,0.142301]
[1721282622339,1.07635162,64836.0,64835.0,0.142301]
[1721282624269,1.04174274,64836.0,64835.0,0.142301]
[1721282624501,1.0765078,64836.0,64835.0,0.142301]
[1721282626471,1.0765078,64836.0,64835.0,0.146801]
[1721282626681,1.3849778,64836.0,64835.0,0.146801]
[1721282627543,1.3851603,64836.0,64835.0,0.146801]
[1721282628368,1.4554603,64836.0,64835.0,0.146801]
[1721282629946,1.65984204,64836.0,64835.0,0.004501]
[1721282631277,1.79827252,64836.0,64835.0,0.004501]
[1721282631496,1.78427252,64836.0,64835.0,0.004501]
[1721282631704,1.65984204,64836.0,64835.0,0.004501]
[1721282632393,1.95431204,64836.0,64835.0,0.004501]
[1721282632842,1.96831204,64836.0,64835.0,0.004501]
[1721282633072,2.03923222,64836.0,64835.0,0.004501]
[1721282633281,2.02523222,64836.0,64835.0,0.004501]
[1721282633940,1.9904411,64836.0,64835.0,0.004501]
[1721282634156,1.88410862,64836.0,64835.0,0.004501]
[1721282634369,1.89810862,64836.0,64835.0,0.004501]
[1721282635707,1.86210862,64836.0,64835.0,0.142101]
[1721282637106,1.86238469,64836.0,64835.0,0.142101]
[1721282637559,1.32832179,64836.0,64835.0,0.142101]
[1721282637801,0.94955179,64836.0,64835.0,0.142101]
[1721282638058,0.54108179,64836.0,64835.0,0.142101]
[1721282638564,0.54108179,64836.0,64835.0,0.14873422]
[1721282638784,0.19386267,64836.0,64835.0,0.14873422]
[1721282639008,0.04283,64836.0,64835.0,0.30297122]
[1721282639259,0.11211825,64836.0,64835.0,0.30297122]
[1721282639919,0.04283,64836.0,64835.0,0.30297122]
[1721282640158,0.11211188,64836.0,64835.0,0.30297122]
[1721282640653,0.01483,64836.0,64835.0,0.76582796]
[1721282640886,0.04618597,64840.0,64837.0,0.462697]
[1721282641137,0.00083,64842.0,64840.0,0.1488]
[1721282641351,0.00083,64842.0,64838.0,0.15438174]
[1721282641352,0.00083,64842.0,64841.0,0.76585074]
[1721282641564,0.00083,64842.0,64841.0,1.38936786]
[1721282642864,0.00383,64842.0,64841.0,1.38936786]
[1721282643782,0.00383,64842.0,64841.0,0.15542512]
[1721282644034,0.158051,64842.0,64841.0,0.15542512]
[1721282644245,0.51265876,64842.0,64841.0,0.15542512]
[1721282644459,0.53574164,64842.0,64841.0,0.15542512]
[1721282644668,0.53574164,64842.0,64841.0,0.1488]
[1721282644878,0.466493,64842.0,64841.0,0.1488]
[1721282645566,0.774935,64842.0,64841.0,0.1488]
[1721282645776,0.774935,64842.0,64841.0,0.1498]
[1721282646004,0.466493,64842.0,64841.0,0.1498]
[1721282646226,0.53569979,64842.0,64841.0,0.1488]
[1721282646467,0.53569979,64842.0,64841.0,0.1498]
[1721282646709,0.466493,64842.0,64841.0,0.1498]
[1721282646932,0.53869979,64842.0,64841.0,0.1498]
[1721282647161,0.84414179,64842.0,64841.0,0.1488]
[1721282647443,0.85314179,64842.0,64841.0,0.1488]
[1721282647675,0.85314179,64842.0,64841.0,0.0829]
[1721282648607,0.77114,64839.0,64838.0,0.0662]
[1721282648847,0.77114,64839.0,64835.0,0.004501]
[1721282648848,0.154235,64836.0,64835.0,0.004501]
[1721282649077,0.771175,64836.0,64835.0,0.004501]
[1721282649303,1.11348494,64836.0,64835.0,0.01107347]
[1721282649547,1.16348494,64836.0,64835.0,0.004501]
[1721282649794,1.22808494,64836.0,64835.0,0.004501]
[1721282650260,1.23908494,64836.0,64835.0,0.004501]
[1721282650485,1.39343451,64836.0,64835.0,0.004501]
[1721282650729,1.62085572,64836.0,64835.0,0.004501]
[1721282651190,1.48243451,64836.0,64835.0,0.004501]
[1721282651644,1.48221611,64836.0,64835.0,0.004501]
[1721282651836,1.49621611,64836.0,64835.0,0.005501]
[1721282652329,1.49621611,64836.0,64835.0,0.004501]
[1721282652554,1.48221611,64836.0,64835.0,0.004501]
[1721282653007,1.49621611,64836.0,64835.0,0.004501]
[1721282653777,1.51021611,64836.0,64835.0,0.005501]
[1721282654233,1.49621611,64836.0,64835.0,0.004501]
[1721282654662,1.47659457,64836.0,64835.0,0.005501]
[1721282654873,1.51035875,64836.0,64835.0,0.005501]
[1721282655070,1.51035875,64836.0,64835.0,0.004501]
[1721282655071,2.18450302,64836.0,64835.0,0.004501]
[1721282655290,2.01473267,64836.0,64835.0,0.004501]
[1721282655504,2.02873267,64836.0,64835.0,0.005501]
[1721282656345,2.05673267,64836.0,64835.0,0.005501]
[1721282656568,2.02873267,64836.0,64835.0,0.005501]
[1721282656786,2.01473267,64836.0,64835.0,0.004501]
[1721282656999,2.02873267,64836.0,64835.0,0.005501]
[1721282657225,2.04273267,64836.0,64835.0,0.005501]
[1721282657663,2.02873267,64836.0,64835.0,0.004501]
[1721282657862,1.92627631,64836.0,64835.0,0.004501]
[1721282658073,2.04344743,64836.0,64835.0,0.005501]
[1721282658283,2.03293631,64836.0,64835.0,0.005501]
[1721282658490,2.15910771,64836.0,64835.0,0.005501]
[1721282658732,2.1592502,64836.0,64835.0,0.005501]
[1721282660462,2.4677202,64836.0,64835.0,0.005501]
[1721282660679,2.5434202,64836.0,64835.0,0.005501]
[1721282661129,2.54207786,64836.0,64835.0,0.005501]
[1721282662644,2.52807786,64836.0,64835.0,0.005501]
[1721282662884,2.51407786,64836.0,64835.0,0.004501]
[1721282663087,2.52807786,64836.0,64835.0,0.004501]
[1721282663305,2.51407786,64836.0,64835.0,0.004501]
[1721282663543,2.35972829,64836.0,64835.0,0.004501]
[1721282663752,2.37372829,64836.0,64835.0,0.004501]
[1721282663959,2.38772829,64836.0,64835.0,0.004501]
[1721282664206,2.28575674,64836.0,64835.0,0.004501]
[1721282664423,2.37272239,64836.0,64835.0,0.004501]
[1721282664646,2.52707196,64836.0,64835.0,0.004501]
[1721282664844,2.54107196,64836.0,64835.0,0.004501]
[1721282667455,2.44010631,64836.0,64835.0,0.004501]
[1721282667652,2.54148178,64836.0,64835.0,0.004501]
[1721282668057,2.54155959,64836.0,64835.0,0.004501]
[1721282668729,2.54156136,64836.0,64835.0,0.004501]
[1721282670734,2.54121198,64836.0,64835.0,0.004501]
[1721282672261,2.52721198,64836.0,64835.0,0.004501]
[1721282673189,2.54121198,64836.0,64835.0,0.004501]
[1721282673662,2.52721198,64836.0,64835.0,0.004501]
[1721282673798,2.49388814,64836.0,64835.0,0.004501]
[1721282674036,2.52582746,64836.0,64835.0,0.004501]
[1721282674677,2.53982746,64836.0,64835.0,0.004501]
[1721282676947,2.47197905,64836.0,64835.0,0.004501]
[1721282677148,2.5396965,64836.0,64835.0,0.004501]
[1721282677365,2.5116965,64836.0,64835.0,0.004501]
[1721282677786,2.5256965,64836.0,64835.0,0.004501]
[1721282678845,2.5396965,64836.0,64835.0,0.004501]
[1721282679514,1.93657693,64836.0,64835.0,0.004501]
[1721282680161,1.93612006,64836.0,64835.0,0.004501]
[1721282680607,1.90812006,64836.0,64835.0,0.004501]